[Event "Titled Tuesday Blitz August 17 2021"]
[White "Petrovskyi, Vadym"]
[Black "Rodchenkov, Vitaly"]
[WhiteFideId "14165210"]
[BlackFideId "4152964"]
[WhiteElo "2334"]
[BlackElo "2337"]
[Result "0-1"]
[Round "08"]
[TimeControl "180+1"]
[Date "2021.08.17"]
[WhiteClock "0:01:04"]
[BlackClock "0:00:52"]

1. e4 {[%clk 0:03:00]}  c5 {[%clk 0:02:54]} 2. Nf3 {[%clk 0:03:00]}  d6 {[%clk 0:02:55]} 3. d4 {[%clk 0:03:01]}  cxd4 {[%clk 0:02:55]} 4. Nxd4 {[%clk 0:03:01]}  Nf6 {[%clk 0:02:56]} 5. Nc3 {[%clk 0:03:01]}  a6 {[%clk 0:02:56]} 6. Bg5 {[%clk 0:03:01]}  e6 {[%clk 0:02:55]} 7. f4 {[%clk 0:03:01]}  Qb6 {[%clk 0:02:53]} 8. Qd2 {[%clk 0:03:01]}  Qxb2 {[%clk 0:02:53]} 9. Rb1 {[%clk 0:03:01]}  Qa3 {[%clk 0:02:53]} 10. f5 {[%clk 0:03:01]}  Nc6 {[%clk 0:02:52]} 11. fxe6 {[%clk 0:03:02]}  fxe6 {[%clk 0:02:52]} 12. Nxc6 {[%clk 0:03:02]}  bxc6 {[%clk 0:02:52]} 13. e5 {[%clk 0:03:02]}  dxe5 {[%clk 0:02:52]} 14. Bxf6 {[%clk 0:03:03]}  gxf6 {[%clk 0:02:52]} 15. Ne4 {[%clk 0:03:03]}  Be7 {[%clk 0:02:52]} 16. Nxf6+ {[%clk 0:02:52]}  Bxf6 {[%clk 0:02:52]} 17. Be2 {[%clk 0:02:53]}  h5 {[%clk 0:02:51]} 18. O-O {[%clk 0:02:51]}  Qe7 {[%clk 0:02:46]} 19. Bd3 {[%clk 0:02:47]}  O-O {[%clk 0:01:59]} 20. Rb3 {[%clk 0:02:27]}  h4 {[%clk 0:01:56]} 21. Rb4 {[%clk 0:02:22]}  Qg7 {[%clk 0:01:27]} 22. h3 {[%clk 0:01:37]}  Bg5 {[%clk 0:01:22]} 23. Rxf8+ {[%clk 0:01:33]}  Kxf8 {[%clk 0:01:21]} 24. Qf2+ {[%clk 0:01:33]}  Bf4 {[%clk 0:01:05]} 25. Qxh4 {[%clk 0:01:17]}  Qg3 {[%clk 0:01:04]} 26. Qf6+ {[%clk 0:01:05]}  Kg8 {[%clk 0:00:54]} 27. Bg6 {[%clk 0:01:04]}  Qe1# {[%clk 0:00:52]} 0-1


[Site "https://www.chess.com"]

[Event "Titled Tuesday Blitz August 17 2021"]
[White "Potapova, Margarita"]
[Black "Pichot, Alan"]
[WhiteFideId "14126869"]
[BlackFideId "110973"]
[WhiteElo "2214"]
[BlackElo "2622"]
[Result "0-1"]
[Round "08"]
[TimeControl "180+1"]
[Date "2021.08.17"]
[WhiteClock "0:00:10"]
[BlackClock "0:00:03"]

1. d4 {[%clk 0:03:00]}  Nf6 {[%clk 0:02:59]} 2. c4 {[%clk 0:03:00]}  e6 {[%clk 0:03:00]} 3. Nc3 {[%clk 0:02:58]}  Bb4 {[%clk 0:03:00]} 4. Qc2 {[%clk 0:02:58]}  c5 {[%clk 0:02:56]} 5. dxc5 {[%clk 0:02:57]}  O-O {[%clk 0:02:57]} 6. a3 {[%clk 0:02:54]}  Bxc5 {[%clk 0:02:57]} 7. Nf3 {[%clk 0:02:52]}  d5 {[%clk 0:02:56]} 8. cxd5 {[%clk 0:02:26]}  exd5 {[%clk 0:02:56]} 9. Bg5 {[%clk 0:02:27]}  Be6 {[%clk 0:02:44]} 10. e3 {[%clk 0:02:24]}  Nc6 {[%clk 0:02:40]} 11. Rd1 {[%clk 0:02:12]}  Rc8 {[%clk 0:02:38]} 12. Bd3 {[%clk 0:02:01]}  h6 {[%clk 0:02:36]} 13. Bh4 {[%clk 0:02:00]}  Be7 {[%clk 0:02:28]} 14. O-O {[%clk 0:01:58]}  Qb6 {[%clk 0:02:24]} 15. Na4 {[%clk 0:01:47]}  Qd8 {[%clk 0:01:41]} 16. Nc3 {[%clk 0:01:47]}  Qa5 {[%clk 0:01:18]} 17. Qe2 {[%clk 0:01:46]}  Rfd8 {[%clk 0:01:16]} 18. Bb1 {[%clk 0:01:45]}  Qb6 {[%clk 0:01:02]} 19. Na4 {[%clk 0:01:37]}  Qa5 {[%clk 0:00:58]} 20. Nc3 {[%clk 0:01:36]}  Bg4 {[%clk 0:00:53]} 21. h3 {[%clk 0:01:27]}  Bh5 {[%clk 0:00:52]} 22. g4 {[%clk 0:01:22]}  Bg6 {[%clk 0:00:51]} 23. Bxg6 {[%clk 0:01:22]}  fxg6 {[%clk 0:00:52]} 24. Qd3 {[%clk 0:01:16]}  g5 {[%clk 0:00:52]} 25. Bg3 {[%clk 0:01:16]}  Qb6 {[%clk 0:00:44]} 26. b4 {[%clk 0:01:05]}  a6 {[%clk 0:00:40]} 27. Na4 {[%clk 0:00:53]}  Qa7 {[%clk 0:00:37]} 28. Qg6 {[%clk 0:00:38]}  b5 {[%clk 0:00:27]} 29. Nc3 {[%clk 0:00:33]}  Nxb4 {[%clk 0:00:27]} 30. Nxb5 {[%clk 0:00:33]}  axb5 {[%clk 0:00:27]} 31. axb4 {[%clk 0:00:34]}  Bxb4 {[%clk 0:00:27]} 32. Be5 {[%clk 0:00:34]}  Qf7 {[%clk 0:00:25]} 33. Qb1 {[%clk 0:00:32]}  Rc4 {[%clk 0:00:23]} 34. Bd4 {[%clk 0:00:32]}  Bd6 {[%clk 0:00:20]} 35. Qxb5 {[%clk 0:00:29]}  Ne4 {[%clk 0:00:20]} 36. Ne5 {[%clk 0:00:25]}  Bxe5 {[%clk 0:00:19]} 37. Bxe5 {[%clk 0:00:26]}  Rc2 {[%clk 0:00:15]} 38. Bg3 {[%clk 0:00:14]}  Qe6 {[%clk 0:00:05]} 39. Qd3 {[%clk 0:00:13]}  Ra2 {[%clk 0:00:05]} 40. Ra1 {[%clk 0:00:13]}  Rxa1 {[%clk 0:00:05]} 41. Rxa1 {[%clk 0:00:14]}  Nxg3 {[%clk 0:00:04]} 42. fxg3 {[%clk 0:00:15]}  Qe5 {[%clk 0:00:04]} 43. Kg2 {[%clk 0:00:13]}  Qxa1 {[%clk 0:00:03]} 44. h4 {[%clk 0:00:11]}  Rf8 {[%clk 0:00:02]} 45. Qxd5+ {[%clk 0:00:09]}  Kh8 {[%clk 0:00:03]} 46. Qd2 {[%clk 0:00:09]}  Qf1+ {[%clk 0:00:02]} 47. Kh2 {[%clk 0:00:10]}  Rf2+ {[%clk 0:00:03]} 0-1


[Site "https://www.chess.com"]

[Event "Titled Tuesday Blitz August 17 2021"]
[White "Prraneeth Vuppala"]
[Black "Hamley, Ryan"]
[WhiteFideId "46622373"]
[BlackFideId "30959497"]
[WhiteElo "1759"]
[BlackElo "2416"]
[Result "0-1"]
[Round "08"]
[TimeControl "180+1"]
[Date "2021.08.17"]
[WhiteClock "0:00:05"]
[BlackClock "0:00:20"]

1. e4 {[%clk 0:03:00]}  e5 {[%clk 0:02:59]} 2. Nf3 {[%clk 0:03:00]}  Nc6 {[%clk 0:03:00]} 3. Bb5 {[%clk 0:03:00]}  a6 {[%clk 0:02:56]} 4. Ba4 {[%clk 0:03:00]}  Nf6 {[%clk 0:02:55]} 5. O-O {[%clk 0:03:00]}  b5 {[%clk 0:02:56]} 6. Bb3 {[%clk 0:03:00]}  Bc5 {[%clk 0:02:57]} 7. c3 {[%clk 0:02:43]}  d6 {[%clk 0:02:54]} 8. a4 {[%clk 0:02:42]}  Bb7 {[%clk 0:02:43]} 9. d4 {[%clk 0:02:38]}  Bb6 {[%clk 0:02:43]} 10. Bg5 {[%clk 0:02:28]}  h6 {[%clk 0:02:41]} 11. Bxf6 {[%clk 0:02:28]}  Qxf6 {[%clk 0:02:41]} 12. Bd5 {[%clk 0:02:29]}  O-O {[%clk 0:02:27]} 13. Na3 {[%clk 0:02:17]}  bxa4 {[%clk 0:01:30]} 14. Qxa4 {[%clk 0:02:15]}  Nd8 {[%clk 0:01:29]} 15. Bxb7 {[%clk 0:02:13]}  Nxb7 {[%clk 0:01:30]} 16. Nc4 {[%clk 0:01:47]}  exd4 {[%clk 0:01:24]} 17. Qc6 {[%clk 0:01:26]}  Nc5 {[%clk 0:01:19]} 18. Nxb6 {[%clk 0:01:00]}  cxb6 {[%clk 0:01:17]} 19. cxd4 {[%clk 0:00:56]}  Rfc8 {[%clk 0:00:54]} 20. Qd5 {[%clk 0:00:46]}  Ne6 {[%clk 0:00:55]} 21. Qxd6 {[%clk 0:00:35]}  Rd8 {[%clk 0:00:43]} 22. Qxb6 {[%clk 0:00:34]}  Nxd4 {[%clk 0:00:43]} 23. Qxf6 {[%clk 0:00:34]}  gxf6 {[%clk 0:00:31]} 24. Nxd4 {[%clk 0:00:34]}  Rxd4 {[%clk 0:00:32]} 25. f3 {[%clk 0:00:28]}  Rb4 {[%clk 0:00:31]} 26. Rf2 {[%clk 0:00:20]}  a5 {[%clk 0:00:32]} 27. Rd2 {[%clk 0:00:19]}  a4 {[%clk 0:00:31]} 28. g4 {[%clk 0:00:19]}  Rab8 {[%clk 0:00:32]} 29. Ra2 {[%clk 0:00:18]}  Kg7 {[%clk 0:00:32]} 30. Kg2 {[%clk 0:00:19]}  Kg6 {[%clk 0:00:32]} 31. Kg3 {[%clk 0:00:19]}  R8b6 {[%clk 0:00:28]} 32. Kf4 {[%clk 0:00:19]}  Ra6 {[%clk 0:00:28]} 33. h4 {[%clk 0:00:19]}  h5 {[%clk 0:00:27]} 34. gxh5+ {[%clk 0:00:18]}  Kxh5 {[%clk 0:00:28]} 35. Rg2 {[%clk 0:00:17]}  Rab6 {[%clk 0:00:27]} 36. Rg7 {[%clk 0:00:16]}  Rxb2 {[%clk 0:00:25]} 37. Rxa4 {[%clk 0:00:17]}  Rh2 {[%clk 0:00:24]} 38. Ra5+ {[%clk 0:00:16]}  Kh6 {[%clk 0:00:24]} 39. Rxf7 {[%clk 0:00:15]}  Rxh4+ {[%clk 0:00:23]} 40. Kf5 {[%clk 0:00:15]}  Rh5+ {[%clk 0:00:23]} 41. Kg4 {[%clk 0:00:13]}  Rxa5 {[%clk 0:00:24]} 42. f4 {[%clk 0:00:13]}  Kg6 {[%clk 0:00:24]} 43. Re7 {[%clk 0:00:12]}  Rb4 {[%clk 0:00:22]} 44. Re6 {[%clk 0:00:08]}  Kf7 {[%clk 0:00:21]} 45. f5 {[%clk 0:00:06]}  Re5 {[%clk 0:00:21]} 46. Ra6 {[%clk 0:00:04]}  Rbxe4+ {[%clk 0:00:20]} 47. Kh5 {[%clk 0:00:04]}  Rxf5+ {[%clk 0:00:20]} 48. Kh6 {[%clk 0:00:05]}  Rh4# {[%clk 0:00:20]} 0-1


[Site "https://www.chess.com"]

[Event "Titled Tuesday Blitz August 17 2021"]
[White "Quparadze, Giga"]
[Black "Stoyanov, Tsvetan"]
[WhiteFideId "13602250"]
[BlackFideId "2917173"]
[WhiteElo "2658"]
[BlackElo "2191"]
[Result "1-0"]
[Round "08"]
[TimeControl "180+1"]
[Date "2021.08.17"]
[WhiteClock "0:01:57"]
[BlackClock "0:00:03"]

1. e4 {[%clk 0:03:00]}  c5 {[%clk 0:03:00]} 2. Nf3 {[%clk 0:03:00]}  d6 {[%clk 0:03:00]} 3. d4 {[%clk 0:03:00]}  cxd4 {[%clk 0:03:01]} 4. Nxd4 {[%clk 0:03:01]}  Nf6 {[%clk 0:03:01]} 5. Nc3 {[%clk 0:03:01]}  a6 {[%clk 0:03:02]} 6. g3 {[%clk 0:03:01]}  e5 {[%clk 0:03:01]} 7. Nde2 {[%clk 0:03:00]}  Be6 {[%clk 0:03:00]} 8. Bg2 {[%clk 0:03:00]}  Be7 {[%clk 0:02:59]} 9. O-O {[%clk 0:03:00]}  O-O {[%clk 0:03:00]} 10. h3 {[%clk 0:03:01]}  b5 {[%clk 0:02:59]} 11. g4 {[%clk 0:03:01]}  b4 {[%clk 0:02:53]} 12. Nd5 {[%clk 0:03:01]}  Nxd5 {[%clk 0:02:53]} 13. exd5 {[%clk 0:03:02]}  Bc8 {[%clk 0:02:54]} 14. f4 {[%clk 0:03:02]}  Nd7 {[%clk 0:02:52]} 15. Be3 {[%clk 0:03:01]}  exf4 {[%clk 0:02:49]} 16. Nxf4 {[%clk 0:03:02]}  Ne5 {[%clk 0:02:46]} 17. Bd4 {[%clk 0:03:02]}  Bg5 {[%clk 0:02:39]} 18. Nd3 {[%clk 0:03:02]}  Nc4 {[%clk 0:02:34]} 19. Nxb4 {[%clk 0:02:56]}  Ne3 {[%clk 0:02:29]} 20. Bxe3 {[%clk 0:02:53]}  Bxe3+ {[%clk 0:02:29]} 21. Kh1 {[%clk 0:02:53]}  h5 {[%clk 0:01:56]} 22. Nc6 {[%clk 0:02:43]}  Qg5 {[%clk 0:01:51]} 23. gxh5 {[%clk 0:02:37]}  f5 {[%clk 0:01:24]} 24. Nd4 {[%clk 0:02:17]}  f4 {[%clk 0:01:20]} 25. Ne6 {[%clk 0:02:18]}  Bxe6 {[%clk 0:01:17]} 26. dxe6 {[%clk 0:02:18]}  Rac8 {[%clk 0:00:46]} 27. Qg4 {[%clk 0:02:17]}  Qxg4 {[%clk 0:00:37]} 28. hxg4 {[%clk 0:02:18]}  Rxc2 {[%clk 0:00:37]} 29. Rad1 {[%clk 0:02:09]}  Rfc8 {[%clk 0:00:20]} 30. Be4 {[%clk 0:02:02]}  Rxb2 {[%clk 0:00:19]} 31. Rxd6 {[%clk 0:01:59]}  Kf8 {[%clk 0:00:15]} 32. Rd7 {[%clk 0:01:58]}  Rc4 {[%clk 0:00:06]} 33. Bg6 {[%clk 0:01:58]}  Rxa2 {[%clk 0:00:03]} 34. e7+ {[%clk 0:01:57]} 1-0


[Site "https://www.chess.com"]

[Event "Titled Tuesday Blitz August 17 2021"]
[White "Ronka, Erik"]
[Black "Matinian, Nikita"]
[WhiteFideId "505080"]
[BlackFideId "24129100"]
[WhiteElo "2264"]
[BlackElo "2410"]
[Result "0-1"]
[Round "08"]
[TimeControl "180+1"]
[Date "2021.08.17"]
[WhiteClock "0:00:02"]
[BlackClock "0:00:46"]

1. d4 {[%clk 0:03:00]}  Nf6 {[%clk 0:02:59]} 2. c4 {[%clk 0:03:01]}  e6 {[%clk 0:02:58]} 3. Nc3 {[%clk 0:03:01]}  Bb4 {[%clk 0:02:58]} 4. a3 {[%clk 0:03:02]}  Bxc3+ {[%clk 0:02:58]} 5. bxc3 {[%clk 0:03:03]}  d6 {[%clk 0:02:57]} 6. f3 {[%clk 0:03:02]}  Nbd7 {[%clk 0:02:54]} 7. e4 {[%clk 0:03:03]}  e5 {[%clk 0:02:55]} 8. Bd3 {[%clk 0:02:59]}  c5 {[%clk 0:02:55]} 9. Ne2 {[%clk 0:02:59]}  b6 {[%clk 0:02:49]} 10. O-O {[%clk 0:02:58]}  Ba6 {[%clk 0:02:49]} 11. f4 {[%clk 0:02:56]}  exd4 {[%clk 0:02:43]} 12. cxd4 {[%clk 0:02:52]}  cxd4 {[%clk 0:02:43]} 13. e5 {[%clk 0:02:39]}  dxe5 {[%clk 0:02:41]} 14. fxe5 {[%clk 0:02:40]}  Nxe5 {[%clk 0:02:41]} 15. Bg5 {[%clk 0:02:41]}  Bb7 {[%clk 0:02:19]} 16. Ng3 {[%clk 0:02:33]}  Qc7 {[%clk 0:02:11]} 17. Bxf6 {[%clk 0:01:29]}  gxf6 {[%clk 0:02:12]} 18. Bf5 {[%clk 0:01:20]}  Rg8 {[%clk 0:01:55]} 19. Ne4 {[%clk 0:01:15]}  Ke7 {[%clk 0:01:36]} 20. Qh5 {[%clk 0:00:53]}  Raf8 {[%clk 0:01:11]} 21. Qh4 {[%clk 0:00:51]}  Bxe4 {[%clk 0:01:10]} 22. Bxe4 {[%clk 0:00:50]}  Qd6 {[%clk 0:01:06]} 23. c5 {[%clk 0:00:48]}  bxc5 {[%clk 0:01:03]} 24. Rab1 {[%clk 0:00:48]}  Rg4 {[%clk 0:00:57]} 25. Rb7+ {[%clk 0:00:46]}  Kd8 {[%clk 0:00:57]} 26. Rxf6 {[%clk 0:00:26]}  Rxh4 {[%clk 0:00:57]} 27. Rxd6+ {[%clk 0:00:27]}  Kc8 {[%clk 0:00:58]} 28. Bd5 {[%clk 0:00:22]}  Rd8 {[%clk 0:00:52]} 29. Ra6 {[%clk 0:00:01]}  Rxd5 {[%clk 0:00:51]} 30. Raxa7 {[%clk 0:00:02]}  Rd7 {[%clk 0:00:46]} 0-1


[Site "https://www.chess.com"]

[Event "Titled Tuesday Blitz August 17 2021"]
[White "Sadovsky, Artem"]
[Black "Tanenbaum, Zachary"]
[WhiteFideId "4155840"]
[BlackFideId "2060850"]
[WhiteElo "2442"]
[BlackElo "2165"]
[Result "0-1"]
[Round "08"]
[TimeControl "180+1"]
[Date "2021.08.17"]
[WhiteClock "0:00:01"]
[BlackClock "0:00:06"]

1. f4 {[%clk 0:03:00]}  d5 {[%clk 0:02:59]} 2. Nf3 {[%clk 0:03:01]}  Nf6 {[%clk 0:03:00]} 3. g3 {[%clk 0:03:01]}  Bf5 {[%clk 0:02:59]} 4. Bg2 {[%clk 0:03:02]}  e6 {[%clk 0:03:00]} 5. O-O {[%clk 0:03:02]}  c5 {[%clk 0:03:00]} 6. d3 {[%clk 0:03:03]}  Nc6 {[%clk 0:03:00]} 7. Nbd2 {[%clk 0:02:58]}  d4 {[%clk 0:02:49]} 8. e4 {[%clk 0:02:55]}  dxe3 {[%clk 0:02:48]} 9. Nc4 {[%clk 0:02:55]}  Be7 {[%clk 0:02:29]} 10. Nxe3 {[%clk 0:02:55]}  Bg6 {[%clk 0:02:29]} 11. Ne5 {[%clk 0:02:46]}  Nxe5 {[%clk 0:02:23]} 12. fxe5 {[%clk 0:02:47]}  Nd5 {[%clk 0:02:23]} 13. Nxd5 {[%clk 0:02:38]}  exd5 {[%clk 0:02:24]} 14. c4 {[%clk 0:02:33]}  dxc4 {[%clk 0:02:20]} 15. Bxb7 {[%clk 0:02:33]}  cxd3 {[%clk 0:01:45]} 16. Qa4+ {[%clk 0:02:07]}  Kf8 {[%clk 0:01:45]} 17. Bxa8 {[%clk 0:02:08]}  Qxa8 {[%clk 0:01:46]} 18. Be3 {[%clk 0:02:08]}  h5 {[%clk 0:01:45]} 19. e6 {[%clk 0:01:53]}  h4 {[%clk 0:01:35]} 20. Qg4 {[%clk 0:01:40]}  hxg3 {[%clk 0:01:15]} 21. Qxg3 {[%clk 0:01:39]}  Kg8 {[%clk 0:00:40]} 22. Rae1 {[%clk 0:01:01]}  Bh4 {[%clk 0:00:32]} 23. exf7+ {[%clk 0:00:50]}  Bxf7 {[%clk 0:00:33]} 24. Qf4 {[%clk 0:00:27]}  Qd5 {[%clk 0:00:32]} 25. Bf2 {[%clk 0:00:23]}  Bf6 {[%clk 0:00:26]} 26. Qe4 {[%clk 0:00:18]}  Qg5+ {[%clk 0:00:17]} 27. Bg3 {[%clk 0:00:17]}  Bd4+ {[%clk 0:00:16]} 28. Rf2 {[%clk 0:00:08]}  Rh6 {[%clk 0:00:06]} 29. Qa8+ {[%clk 0:00:04]}  Kh7 {[%clk 0:00:06]} 30. Qe4+ {[%clk 0:00:03]}  Bg6 {[%clk 0:00:06]} 31. Qf3 {[%clk 0:00:02]}  d2 {[%clk 0:00:04]} 32. Rd1 {[%clk 0:00:02]}  Bxf2+ {[%clk 0:00:04]} 33. Qxf2 {[%clk 0:00:03]}  Bh5 {[%clk 0:00:03]} 34. Rxd2 {[%clk 0:00:03]}  Rf6 {[%clk 0:00:03]} 35. Qe1 {[%clk 0:00:03]}  Bf3 {[%clk 0:00:03]} 36. Qb1+ {[%clk 0:00:03]}  g6 {[%clk 0:00:03]} 37. Rf2 {[%clk 0:00:03]}  Rf5 {[%clk 0:00:02]} 38. Qe1 {[%clk 0:00:03]}  Kh6 {[%clk 0:00:01]} 39. Qc3 {[%clk 0:00:02]}  Be4 {[%clk 0:00:01]} 40. Rxf5 {[%clk 0:00:01]}  Qxf5 {[%clk 0:00:01]} 41. Qe3+ {[%clk 0:00:01]}  Kh7 {[%clk 0:00:01]} 42. Bf2 {[%clk 0:00:01]}  Qg4+ {[%clk 0:00:02]} 43. Kf1 {[%clk 0:00:02]}  Qd1+ {[%clk 0:00:02]} 44. Be1 {[%clk 0:00:02]}  Qd5 {[%clk 0:00:01]} 45. b3 {[%clk 0:00:01]}  Qf5+ {[%clk 0:00:02]} 46. Ke2 {[%clk 0:00:01]}  Qg4+ {[%clk 0:00:02]} 47. Kd2 {[%clk 0:00:01]}  Kg8 {[%clk 0:00:02]} 48. Bf2 {[%clk 0:00:02]}  Qd7+ {[%clk 0:00:02]} 49. Kc3 {[%clk 0:00:02]}  Qf5 {[%clk 0:00:03]} 50. Qxc5 {[%clk 0:00:02]}  Qf3+ {[%clk 0:00:03]} 51. Qe3 {[%clk 0:00:03]}  Qf6+ {[%clk 0:00:03]} 52. Qd4 {[%clk 0:00:03]}  Qc6+ {[%clk 0:00:04]} 53. Kb2 {[%clk 0:00:03]}  Qc2+ {[%clk 0:00:04]} 54. Ka3 {[%clk 0:00:04]}  a6 {[%clk 0:00:04]} 55. Qd8+ {[%clk 0:00:03]}  Kf7 {[%clk 0:00:05]} 56. Qd7+ {[%clk 0:00:03]}  Kg8 {[%clk 0:00:05]} 57. Qe8+ {[%clk 0:00:04]}  Kh7 {[%clk 0:00:04]} 58. Qf7+ {[%clk 0:00:04]}  Kh6 {[%clk 0:00:05]} 59. Be3+ {[%clk 0:00:05]}  Kh5 {[%clk 0:00:05]} 60. Qh7+ {[%clk 0:00:02]}  Kg4 {[%clk 0:00:06]} 61. Qd7+ {[%clk 0:00:02]}  Bf5 {[%clk 0:00:06]} 62. Qd4+ {[%clk 0:00:02]}  Be4 {[%clk 0:00:06]} 63. Qc5 {[%clk 0:00:02]}  Qd3 {[%clk 0:00:06]} 64. Qa7 {[%clk 0:00:01]}  Kf3 {[%clk 0:00:06]} 0-1


[Site "https://www.chess.com"]

[Event "Titled Tuesday Blitz August 17 2021"]
[White "Sarkar, Justin"]
[Black "Mirzanurov, Bulat"]
[WhiteFideId "2010011"]
[BlackFideId "4184521"]
[WhiteElo "2094"]
[BlackElo "2208"]
[Result "1-0"]
[Round "08"]
[TimeControl "180+1"]
[Date "2021.08.18"]
[WhiteClock "0:00:12"]
[BlackClock "0:00:02"]

1. e4 {[%clk 0:02:45]}  c5 {[%clk 0:02:58]} 2. Nf3 {[%clk 0:02:44]}  d6 {[%clk 0:02:58]} 3. d4 {[%clk 0:02:42]}  cxd4 {[%clk 0:02:59]} 4. Nxd4 {[%clk 0:02:41]}  Nf6 {[%clk 0:02:59]} 5. Nc3 {[%clk 0:02:41]}  a6 {[%clk 0:03:00]} 6. h4 {[%clk 0:02:40]}  e5 {[%clk 0:02:55]} 7. Nb3 {[%clk 0:02:39]}  Be6 {[%clk 0:02:53]} 8. f4 {[%clk 0:02:32]}  exf4 {[%clk 0:02:42]} 9. Bxf4 {[%clk 0:02:29]}  Nc6 {[%clk 0:02:42]} 10. Be2 {[%clk 0:02:21]}  Be7 {[%clk 0:02:38]} 11. Qd2 {[%clk 0:02:14]}  Ne5 {[%clk 0:02:32]} 12. O-O-O {[%clk 0:02:06]}  Qc7 {[%clk 0:02:26]} 13. Nd4 {[%clk 0:01:50]}  O-O-O {[%clk 0:02:20]} 14. Nf5 {[%clk 0:01:44]}  Bxf5 {[%clk 0:02:18]} 15. exf5 {[%clk 0:01:45]}  Kb8 {[%clk 0:01:51]} 16. g4 {[%clk 0:01:38]}  Nc4 {[%clk 0:01:31]} 17. Qd4 {[%clk 0:01:24]}  Nb6 {[%clk 0:01:30]} 18. g5 {[%clk 0:01:22]}  Ne8 {[%clk 0:01:18]} 19. Be3 {[%clk 0:01:17]}  Nc8 {[%clk 0:01:03]} 20. Nd5 {[%clk 0:01:16]}  Qd7 {[%clk 0:01:00]} 21. f6 {[%clk 0:01:10]}  Bf8 {[%clk 0:00:56]} 22. Bg4 {[%clk 0:00:58]}  Qc6 {[%clk 0:00:39]} 23. Ne7 {[%clk 0:00:38]}  Bxe7 {[%clk 0:00:21]} 24. fxe7 {[%clk 0:00:35]}  Nxe7 {[%clk 0:00:21]} 25. Qa7+ {[%clk 0:00:33]}  Kc7 {[%clk 0:00:21]} 26. Rd3 {[%clk 0:00:29]}  Qxh1+ {[%clk 0:00:15]} 27. Bg1 {[%clk 0:00:20]}  Rc8 {[%clk 0:00:03]} 28. Rc3+ {[%clk 0:00:16]}  Kd8 {[%clk 0:00:02]} 29. Bxc8 {[%clk 0:00:13]}  Nxc8 {[%clk 0:00:02]} 30. Qd4 {[%clk 0:00:12]} 1-0


[Site "https://www.chess.com"]

[Event "Titled Tuesday Blitz August 17 2021"]
[White "Shafigullina, Zarina"]
[Black "Sengupta, Deep"]
[WhiteFideId "24174220"]
[BlackFideId "5008352"]
[WhiteElo "2087"]
[BlackElo "2347"]
[Result "0-1"]
[Round "08"]
[TimeControl "180+1"]
[Date "2021.08.17"]
[WhiteClock "0:00:02"]
[BlackClock "0:00:09"]

1. d4 {[%clk 0:02:59]}  d5 {[%clk 0:02:59]} 2. Nf3 {[%clk 0:02:58]}  Nf6 {[%clk 0:02:58]} 3. g3 {[%clk 0:02:58]}  c6 {[%clk 0:02:57]} 4. Bg2 {[%clk 0:02:55]}  Bg4 {[%clk 0:02:58]} 5. O-O {[%clk 0:02:55]}  Nbd7 {[%clk 0:02:57]} 6. h3 {[%clk 0:02:49]}  Bxf3 {[%clk 0:02:56]} 7. Bxf3 {[%clk 0:02:49]}  e6 {[%clk 0:02:55]} 8. Nd2 {[%clk 0:02:47]}  Be7 {[%clk 0:02:53]} 9. e4 {[%clk 0:02:46]}  dxe4 {[%clk 0:02:53]} 10. Nxe4 {[%clk 0:02:46]}  O-O {[%clk 0:02:53]} 11. c4 {[%clk 0:02:42]}  Nxe4 {[%clk 0:02:52]} 12. Bxe4 {[%clk 0:02:42]}  Nf6 {[%clk 0:02:52]} 13. Bg2 {[%clk 0:02:40]}  c5 {[%clk 0:02:51]} 14. d5 {[%clk 0:02:34]}  exd5 {[%clk 0:02:51]} 15. cxd5 {[%clk 0:02:33]}  Bd6 {[%clk 0:02:51]} 16. Be3 {[%clk 0:02:32]}  Re8 {[%clk 0:02:46]} 17. Qb3 {[%clk 0:02:25]}  b6 {[%clk 0:02:46]} 18. a4 {[%clk 0:02:22]}  Rb8 {[%clk 0:02:42]} 19. Rfc1 {[%clk 0:02:19]}  h6 {[%clk 0:02:29]} 20. Qd3 {[%clk 0:02:18]}  Qe7 {[%clk 0:02:26]} 21. Rc3 {[%clk 0:02:02]}  Nd7 {[%clk 0:02:23]} 22. a5 {[%clk 0:01:58]}  b5 {[%clk 0:02:05]} 23. b3 {[%clk 0:01:58]}  a6 {[%clk 0:02:05]} 24. Rac1 {[%clk 0:01:52]}  Qf6 {[%clk 0:01:56]} 25. h4 {[%clk 0:01:43]}  Ne5 {[%clk 0:01:26]} 26. Qd1 {[%clk 0:01:38]}  c4 {[%clk 0:01:26]} 27. Bd4 {[%clk 0:01:28]}  Bb4 {[%clk 0:01:25]} 28. f4 {[%clk 0:01:17]}  Bxc3 {[%clk 0:01:23]} 29. Bxc3 {[%clk 0:01:08]}  Qg6 {[%clk 0:01:18]} 30. Bxe5 {[%clk 0:00:56]}  Rbd8 {[%clk 0:01:16]} 31. bxc4 {[%clk 0:00:51]}  Qxg3 {[%clk 0:01:12]} 32. c5 {[%clk 0:00:45]}  f6 {[%clk 0:01:10]} 33. Bd4 {[%clk 0:00:36]}  Rxd5 {[%clk 0:01:07]} 34. c6 {[%clk 0:00:33]}  Kh8 {[%clk 0:00:51]} 35. c7 {[%clk 0:00:27]}  Rc8 {[%clk 0:00:51]} 36. Rc3 {[%clk 0:00:12]}  Rxd4 {[%clk 0:00:38]} 37. Qxd4 {[%clk 0:00:11]}  Qe1+ {[%clk 0:00:39]} 38. Bf1 {[%clk 0:00:11]}  Kh7 {[%clk 0:00:32]} 39. Qd3+ {[%clk 0:00:09]}  Kg8 {[%clk 0:00:23]} 40. Qd5+ {[%clk 0:00:08]}  Kh7 {[%clk 0:00:23]} 41. Qd3+ {[%clk 0:00:07]}  Kg8 {[%clk 0:00:22]} 42. Qf3 {[%clk 0:00:05]}  Kh8 {[%clk 0:00:17]} 43. Re3 {[%clk 0:00:04]}  Qxh4 {[%clk 0:00:15]} 44. Qd5 {[%clk 0:00:03]}  f5 {[%clk 0:00:14]} 45. Qd7 {[%clk 0:00:03]}  Qg4+ {[%clk 0:00:12]} 46. Bg2 {[%clk 0:00:02]}  Rg8 {[%clk 0:00:09]} 47. c8=Q {[%clk 0:00:02]}  Qxf4 {[%clk 0:00:09]} 0-1


[Site "https://www.chess.com"]

[Event "Titled Tuesday Blitz August 17 2021"]
[White "Shimelkov, Vasiliy"]
[Black "Eynullayev, Altay"]
[WhiteFideId "13701630"]
[BlackFideId "13413562"]
[WhiteElo "2073"]
[BlackElo "2079"]
[Result "1-0"]
[Round "08"]
[TimeControl "180+1"]
[Date "2021.08.17"]
[WhiteClock "0:01:15"]
[BlackClock "0:00:01"]

1. d4 {[%clk 0:03:00]}  Nf6 {[%clk 0:02:58]} 2. c4 {[%clk 0:02:58]}  e6 {[%clk 0:02:58]} 3. Nf3 {[%clk 0:02:56]}  b6 {[%clk 0:02:59]} 4. g3 {[%clk 0:02:55]}  Ba6 {[%clk 0:02:59]} 5. Qc2 {[%clk 0:02:53]}  Bb7 {[%clk 0:02:57]} 6. Bg2 {[%clk 0:02:52]}  c5 {[%clk 0:02:57]} 7. O-O {[%clk 0:02:50]}  cxd4 {[%clk 0:02:57]} 8. Nxd4 {[%clk 0:02:49]}  Bxg2 {[%clk 0:02:57]} 9. Kxg2 {[%clk 0:02:48]}  Be7 {[%clk 0:02:57]} 10. Rd1 {[%clk 0:02:46]}  O-O {[%clk 0:02:43]} 11. e4 {[%clk 0:02:45]}  Qc7 {[%clk 0:02:36]} 12. Be3 {[%clk 0:02:40]}  Qb7 {[%clk 0:02:32]} 13. Nd2 {[%clk 0:02:36]}  Nc6 {[%clk 0:02:27]} 14. f3 {[%clk 0:02:30]}  Rac8 {[%clk 0:02:13]} 15. Rac1 {[%clk 0:02:27]}  Nxd4 {[%clk 0:02:06]} 16. Bxd4 {[%clk 0:02:25]}  d5 {[%clk 0:02:06]} 17. exd5 {[%clk 0:02:22]}  exd5 {[%clk 0:02:06]} 18. b3 {[%clk 0:02:20]}  Rfd8 {[%clk 0:01:50]} 19. Qf5 {[%clk 0:02:14]}  dxc4 {[%clk 0:00:50]} 20. Nxc4 {[%clk 0:02:11]}  b5 {[%clk 0:00:50]} 21. Bxf6 {[%clk 0:01:58]}  g6 {[%clk 0:00:08]} 22. Qg5 {[%clk 0:01:50]}  Bxf6 {[%clk 0:00:07]} 23. Qxf6 {[%clk 0:01:48]}  Rxd1 {[%clk 0:00:06]} 24. Rxd1 {[%clk 0:01:47]}  bxc4 {[%clk 0:00:07]} 25. bxc4 {[%clk 0:01:43]}  Qc7 {[%clk 0:00:06]} 26. Rd4 {[%clk 0:01:36]}  Re8 {[%clk 0:00:03]} 27. Kf1 {[%clk 0:01:19]}  Qc5 {[%clk 0:00:01]} 28. Qf4 {[%clk 0:01:15]} 1-0


[Site "https://www.chess.com"]